[Event "45th FIDE Olympiad 2024"]
[Site "Budapest"]
[Date "2024.09.19"]
[Round "8.12"]
[White "Pitamber, Sachin Dhilan"]
[Black "Mejias Nunez, Rafael E."]
[Result "1/2-1/2"]
[WhiteElo "1715"]
[BlackElo "2026"]
[PlyCount "97"]
[EventDate "2024.09.05"]
[EventType "team-tourn"]
[EventCountry "HUN"]
[WhiteTeam "Guyana"]
[BlackTeam "Puerto Rico"]
[WhiteTeamCountry "GUY"]
[BlackTeamCountry "PUR"]
[TimeControl "40/5400+30:1800+30"]

1. e4 c5 2. Nf3 e6 3. Nc3 a6 4. d4 cxd4 5. Nxd4 Qc7 6. Be3 Bb4 7. Qd3 Nf6 8. Bd2 Nc6 9. Be2 O-O 10. O-O-O b5 11. a3 Nxd4 12. Qxd4 Bc5 13. Qd3 Bb7 14. Bg5 Bc6 15. Kb1 b4 16. Bxf6 gxf6 17. axb4 Bxb4 18. Qd4 Bxc3 19. Qxc3 Qe5 20. Qxe5 fxe5 21. Rd3 Rfc8 22. Rg3+ Kf8 23. Bd3 Ke7 24. Re1 a5 25. Rh3 Rg8 26. g3 Rg7 27. f4 exf4 28. gxf4 Rag8 29. e5 Rg1 30. Rxg1 Rxg1+ 31. Ka2 Rg4 32. f5 exf5 33. Rxh7 Bd5+ 34. b3 f4 35. c4 Rg2+ 36. Ka3 Be6 37. Rh4 f3 38. Rf4 f2 39. h4 d6 40. exd6+ Kxd6 41. h5 Rh2 42. h6 f5 43. h7 Rxh7 44. Rxf2 Rf7 45. b4 axb4+ 46. Kxb4 Rb7+ 47. Kc3 Kc5 48. Re2 Kd6 49. c5+ 1/2-1/2

[Event "45th FIDE Olympiad 2024"]
[Site "Budapest"]
[Date "2024.09.19"]
[Round "8.13"]
[White "Caruana, Fabiano"]
[Black "Vachier-Lagrave, Maxime"]
[Result "1/2-1/2"]
[ECO "B52"]
[WhiteElo "2798"]
[BlackElo "2731"]
[Annotator "TA"]
[PlyCount "90"]
[EventDate "2024.09.05"]
[EventType "team-tourn"]
[EventCountry "HUN"]
[SourceTitle "playchess.com"]
[Source "ChessBase"]
[SourceQuality "1"]
[WhiteTeam "United States of America"]
[BlackTeam "France"]
[BlackTeamCountry "FRA"]
[TimeControl "40/5400+30:1800+30"]

{[%evp 24,90,-8,-14,-18,-15,-4,-11,-7,0,0,-31,-11,-15,-7,-7,9,29,9,22,19,17,18,11,11,8,5,0,0,7,11,0,0,0,0,0,2,0,0,0,0,0,0,0,0,0,0,0,0,0,0,-8,-8,-8,-8,-8,0,0,0,0,0,0,0,0,0,0,0,0,0]} 1. e4 {[%emt 0:00:07]} c5 {[%emt 0:00:04]} 2. Nf3 {[%emt 0:00:03]} d6 {[%emt 0:00:04]} 3. Bb5+ {[%emt 0:00:06]} Bd7 {[%emt 0:00:38]} 4. Bxd7+ {[%emt 0:00:06]} Qxd7 {[%emt 0:00:03]} 5. O-O {[%emt 0:00:10]} Nc6 {[%emt 0:00:08]} 6. Re1 {[%emt 0:00:14]} Nf6 {[%emt 0:00:34]} 7. c3 {[%emt 0:00:11]} e6 {[%emt 0:00:03]} 8. d4 {[%emt 0:00:05]} cxd4 {[%emt 0:00:05]} 9. cxd4 {[%emt 0:00:04]} d5 {[%emt 0:00:03]} 10. e5 {[%emt 0:00:06]} Ne4 {[%emt 0:00:12]} 11. a3 {[%emt 0:00:11]} Be7 {[%emt 0:10:27]} 12. Nbd2 {[%emt 0:00:37]} Nxd2 {[%emt 0:00:05]} 13. Bxd2 {[%emt 0:00:03]} O-O {[%emt 0:01:32]} 14. Rc1 {[%emt 0:00:07]} Rfc8 {[%emt 0:06:53]} 15. h4 {[%emt 0:00:39]} Bd8 {[%emt 0:02:27]} 16. h5 {[%emt 0:22:48]} h6 {[%emt 0:01:28]} 17. Rc3 {[%emt 0:00:45]} Ne7 {[%emt 0:02:33]} 18. Rd3 {[%emt 0:03:23]} Qc6 {[%emt 0:06:03]} 19. g4 {[%emt 0:10:40]} Qc2 {[%emt 0:11:37]} 20. Qxc2 {[%emt 0:17:39]} Rxc2 {[%emt 0:00:07]} 21. Bc3 {[%emt 0:00:02] aiming for Rb1. The position is equal.} Nc6 {[%emt 0:00:05]} 22. Red1 {[%emt 0:05:50] Threatens to win with Ne1.} Bg5 $1 {[%emt 0:01:26]} 23. Ne1 {[%emt 0:01:32][%cal Bf3e1,Be1d3,Bd3c5][%mdl 32]} Rc1 {[%emt 0:00:12]} 24. Rxc1 {[%emt 0:00:05]} Bxc1 {[%emt 0:00:03]} 25. Rd1 {[%emt 0:00:14]} Bg5 {[%emt 0:00:10]} 26. Nd3 {[%emt 0:00:09]} Bd8 {[%emt 0:11:25]} 27. Nc5 {[%emt 0:02:51]} b6 {[%emt 0:03:32]} 28. Nd3 {[%emt 0:04:44]} b5 {[%emt 0:00:12]} 29. Nb4 {[%emt 0:09:15]} Na5 {[%emt 0:07:00]} 30. Na6 {[%emt 0:06:17]} Nb3 {[%emt 0:02:04]} 31. Nc5 {[%emt 0:04:02]} Nxc5 {[%emt 0:00:08]} 32. dxc5 $11 {[%emt 0:00:03][%mdl 4096] Endgame. KRB-KRB} Kf8 {[%emt 0:07:32]} 33. b4 {[%emt 0:04:40][%cal Oa3a4]} Ke8 {[%emt 0:01:10]} 34. a4 {[%emt 0:05:44]} bxa4 {[%emt 0:00:04]} 35. Ra1 {[%emt 0:00:02]} Kd7 {[%emt 0:00:07]} 36. Rxa4 {[%emt 0:02:18]} Kc6 {[%emt 0:00:07]} 37. Ra6+ {[%emt 0:00:20]} Kb5 {[%emt 0:00:03]} 38. Rd6 {[%emt 0:00:02]} a5 {[%emt 0:07:03]} 39. bxa5 {[%emt 0:00:04]} Bxa5 {[%emt 0:00:07]} 40. Bxa5 {[%emt 0:00:06]} Rxa5 {[%emt 0:00:03] KR-KR} 41. Rd7 {[%emt 0:18:51]} Kxc5 {[%emt 0:02:32]} 42. Rxf7 {[%emt 0:00:12]} d4 {[%emt 0:05:37]} 43. Rxg7 {[%emt 0:00:45]} d3 {[%emt 0:04:11] [#] ( -> ...Kc6)} 44. Rd7 $1 {[%emt 0:00:12]} Kc4 {[%emt 0:05:57][%cal Oc4c3] Strongly threatening ...Kc3!} 45. f4 {[%emt 0:00:17]} Rd5 {[%emt 0:00:07] A rather calm draw.   Weighted Error Value: White=0.03 (flawless) /Black=0.02 (flawless) .  Inaccurate:     	White=1     	---        OK:         	White=16    	Black=16     Best:        	---       	Black=1      Strong:       	White=1     	Black=1} 1/2-1/2

[Event "45th FIDE Olympiad 2024"]
[Site "Budapest"]
[Date "2024.09.19"]
[Round "8.13"]
[White "Mathurin, Nathaniel"]
[Black "Kawuma, Patrick"]
[Result "0-1"]
[WhiteElo "1982"]
[BlackElo "2207"]
[PlyCount "89"]
[EventDate "2024.09.05"]
[EventType "team-tourn"]
[EventCountry "HUN"]
[WhiteTeam "Saint Lucia"]
[BlackTeam "Uganda"]
[BlackTeamCountry "UGA"]
[TimeControl "40/5400+30:1800+30"]

1. d4 Nf6 2. Nf3 e6 3. c4 d5 4. g3 Be7 5. Bg2 O-O 6. O-O a5 7. Qc2 c6 8. Bf4 Nbd7 9. b3 b6 10. Nbd2 Nh5 11. e4 Nxf4 12. gxf4 dxe4 13. Nxe4 Qc7 14. Ne5 Bb7 15. Rad1 Rad8 16. Rfe1 c5 17. d5 exd5 18. cxd5 Nxe5 19. fxe5 Bxd5 20. Ng5 Bxg5 21. Bxd5 Kh8 22. Qf5 Qe7 23. f4 Bh6 24. Rf1 Qh4 25. Kg2 b5 26. Rd3 g6 27. Qe4 Bg7 28. Rfd1 Qg4+ 29. Kh1 Bh6 30. Rf1 Qh4 31. f5 Qxe4+ 32. Bxe4 Rd4 33. Rxd4 cxd4 34. Bd3 b4 35. Bc4 Kg7 36. Kg2 Be3 37. Kf3 gxf5 38. Ke2 f4 39. Kd3 Re8 40. Ke4 Rc8 41. Rb1 a4 42. Rb2 a3 43. Rg2+ Kf8 44. e6 Re8 45. Ke5 {0-} 0-1

[Event "45th FIDE Olympiad 2024"]
[Site "Budapest"]
[Date "2024.09.19"]
[Round "8.14"]
[White "Bacrot, Etienne"]
[Black "So, Wesley"]
[Result "1/2-1/2"]
[ECO "C67"]
[WhiteElo "2665"]
[BlackElo "2752"]
[Annotator "TA"]
[PlyCount "130"]
[EventDate "2024.09.05"]
[EventType "team-tourn"]
[EventCountry "HUN"]
[SourceTitle "playchess.com"]
[Source "ChessBase"]
[SourceQuality "1"]
[WhiteTeam "France"]
[BlackTeam "United States of America"]
[WhiteTeamCountry "FRA"]
[TimeControl "40/5400+30:1800+30"]

{[%evp 18,130,23,23,22,16,12,25,12,9,24,0,0,4,2,8,0,12,5,7,0,4,9,0,0,0,0,0,0,-12,0,0,0,0,0,-5,0,0,0,0,0,0,0,0,0,0,0,0,0,0,0,0,0,0,0,0,0,0,0,-8,-12,-8,0,0,0,0,0,0,0,0,0,0,0,0,0,0,0,0,0,0,0,0,0,0,0,0,0,0,0,0,0,0,0,0,0,0,0,-8,-8,-8,-8,-8,-8,-8,-8,-8,-8,-8,0,-8,-8,-8,-8,-8,-8]} 1. e4 {[%emt 0:00:03]} e5 {[%emt 0:00:15]} 2. Nf3 {[%emt 0:00:08]} Nc6 {[%emt 0:00:04]} 3. Bb5 {[%emt 0:00:05]} Nf6 {[%emt 0:00:04]} 4. O-O {[%emt 0:00:06][%cal Bh1f1,Bf1e1,Be1e5][%mdl 32]} Nxe4 {[%emt 0:00:04]} 5. Re1 {[%emt 0:00:06]} Nd6 {[%emt 0:01:08]} 6. Nxe5 {[%emt 0:00:14]} Be7 {[%emt 0:00:06]} 7. Bf1 {[%emt 0:00:16]} Nxe5 {[%emt 0:00:53]} 8. Rxe5 {[%emt 0:00:07]} O-O {[%emt 0:00:03]} 9. d4 {[%emt 0:01:34]} Bf6 {[%emt 0:00:35]} 10. Re1 {[%emt 0:00:08]} Re8 {[%emt 0:00:20]} 11. Bf4 {[%emt 0:00:11]} Rxe1 {[%emt 0:00:35]} 12. Qxe1 {[%emt 0:00:06]} Ne8 {[%emt 0:00:05][%cal Bd6e8,Be8g7,Bg7f5][%mdl 32] White has an edge.} 13. c3 {[%emt 0:00:21]} d5 {[%emt 0:00:30]} 14. Bd3 {[%emt 0:00:37]} g6 {[%emt 0:01:13] The position is equal.} 15. Nd2 {[%emt 0:00:29][%cal Bb1d2,Bd2f3,Bf3e5,Be5d3,Bd3f4][%mdl 32]} Ng7 {[%emt 0:01:12]} 16. Nf3 {[%emt 0:00:19]} Bf5 {[%emt 0:01:33]} 17. Bxf5 {[%emt 0:00:49]} Nxf5 {[%emt 0:00:06]} 18. Qd2 {[%emt 0:00:13]} c6 {[%emt 0:07:24]} 19. Re1 {[%emt 0:00:25]} Ng7 {[%emt 0:04:51]} 20. Be5 {[%emt 0:02:46]} Bxe5 {[%emt 0:01:15]} 21. Nxe5 {[%emt 0:00:22]} f6 {[%emt 0:00:58]} 22. Nd3 {[%emt 0:01:32]} Qc7 {[%emt 0:03:28]} 23. Qf4 {[%emt 0:04:23]} Qxf4 {[%emt 0:00:38]} 24. Nxf4 $11 {[%emt 0:00:06][%mdl 4096] Endgame. KRN-KRN} g5 {[%emt 0:00:29]} 25. Nd3 {[%emt 0:00:05]} Kf7 {[%emt 0:00:14] Inhibits Re7+.} 26. f3 {[%emt 0:00:17]} Ne6 {[%emt 0:02:35]} 27. Kf2 {[%emt 0:00:37]} a5 {[%emt 0:00:09]} 28. h4 {[%emt 0:01:00]} Nf4 {[%emt 0:01:01]} 29. Nxf4 {[%emt 0:05:28]} gxf4 {[%emt 0:00:55] KR-KR} 30. g3 {[%emt 0:00:04]} fxg3+ {[%emt 0:00:19]} 31. Kxg3 {[%emt 0:00:02]} Rg8+ {[%emt 0:00:06]} 32. Kf2 {[%emt 0:00:05]} a4 {[%emt 0:00:03]} 33. Re2 {[%emt 0:00:21]} b6 {[%emt 0:01:00]} 34. b3 {[%emt 0:06:07]} axb3 {[%emt 0:01:34]} 35. axb3 {[%emt 0:00:01]} Ra8 {[%emt 0:00:20]} 36. Kg3 {[%emt 0:05:10]} Ra3 {[%emt 0:02:56]} 37. Rb2 {[%emt 0:00:42]} Ra1 {[%emt 0:00:19]} 38. Re2 {[%emt 0:03:46]} Rc1 {[%emt 0:04:30]} 39. Re3 {[%emt 0:00:09]} h5 {[%emt 0:00:33]} 40. b4 {[%emt 0:10:21]} b5 {[%emt 0:02:26]} 41. Kf4 {[%emt 0:51:28]} Kg6 {[%emt 0:30:09]} 42. Rd3 $1 {[%emt 0:00:35]} Rh1 {[%emt 0:00:15]} 43. Re3 {[%emt 0:00:20]} Rxh4+ {[%emt 0:06:56]} 44. Kg3 {[%emt 0:00:52]} Rh1 {[%emt 0:00:37]} 45. Re6 {[%emt 0:00:26]} Kg5 {[%emt 0:00:33]} 46. Rxc6 {[%emt 0:00:09]} h4+ {[%emt 0:00:05]} 47. Kg2 {[%emt 0:00:07]} Rc1 {[%emt 0:00:06] White must now prevent ...Rc2+.} 48. Rc5 {[%emt 0:11:38][%csl LRb5,LRd5]} f5 {[%emt 0:02:59]} 49. Rxd5 {[%emt 0:02:44]} Rc2+ {[%emt 0:00:13]} 50. Kh3 {[%emt 0:00:10]} Rxc3 {[%emt 0:00:05]} 51. Rxb5 {[%emt 0:00:23]} Rxf3+ {[%emt 0:00:05]} 52. Kg2 {[%emt 0:00:57]} Kg4 {[%emt 0:00:39]} 53. Rb8 {[%emt 0:00:19]} h3+ {[%emt 0:00:11]} 54. Kg1 {[%emt 0:00:47]} Rg3+ {[%emt 0:00:26]} 55. Kh1 {[%emt 0:09:35] [#] Intending Rg8+ and mate.} Rd3 {[%emt 0:01:06][%cal Of5f4] And now ...f4! would win.} 56. b5 {[%emt 0:07:04]} Rxd4 {[%emt 0:01:18]} 57. b6 {[%emt 0:00:13]} Rd1+ {[%emt 0:00:15]} 58. Kh2 {[%emt 0:00:05] Strongly threatening b7.} Rd2+ {[%emt 0:00:03]} 59. Kh1 {[%emt 0:04:53] [#] aiming for b7.} Rb2 {[%emt 0:02:38]} 60. b7 {[%emt 0:00:37] Threatening mate with Rg8+.} Kf4 {[%emt 0:00:33]} 61. Kg1 {[%emt 0:00:21]} (61. Rh8 {simplifies} Rb1+ 62. Kh2 Rxb7 63. Rxh3 Rb2+ 64. Kg1) 61... Rg2+ {[%emt 0:02:44]} 62. Kf1 $132 {[%emt 0:03:37][%mdl 2048] White is not holding back} Rb2 {[%emt 0:01:15]} 63. Rh8 {[%emt 0:02:01]} Rxb7 {[%emt 0:00:20] ( -> ...Rb1+)} 64. Rxh3 {[%emt 0:00:05]} Rb1+ {[%emt 0:00:05]} 65. Kf2 {[%emt 0:00:06]} Rb2+ {[%emt 0:00:05] An interesting draw.   Weighted Error Value: White=0.02 (flawless) /Black=0.01 (flawless) .  OK:         	White=26    	Black=33     Best:        	White=6     	Black=2      Strong:       	White=1     	---} 1/2-1/2

[Event "45th FIDE Olympiad 2024"]
[Site "Budapest"]
[Date "2024.09.19"]
[Round "8.14"]
[White "Egesa, Emmanuel"]
[Black "James, Justin"]
[Result "1-0"]
[WhiteElo "2128"]
[BlackElo "1745"]
[PlyCount "100"]
[EventDate "2024.09.05"]
[EventType "team-tourn"]
[EventCountry "HUN"]
[WhiteTeam "Uganda"]
[BlackTeam "Saint Lucia"]
[WhiteTeamCountry "UGA"]
[TimeControl "40/5400+30:1800+30"]

1. d4 d5 2. Nf3 Nf6 3. c3 e6 4. Bf4 c5 5. e3 Qb6 6. Qc2 Nc6 7. Nbd2 Nh5 8. Bg5 h6 9. Bh4 g5 10. Bg3 Nxg3 11. hxg3 Bg7 12. Nb3 c4 13. Nbd2 Qc7 14. b3 cxb3 15. axb3 Bd7 16. Bd3 Rc8 17. Rc1 a5 18. Nb1 Na7 19. c4 dxc4 20. bxc4 Nc6 21. Qb3 Nb4 22. Be2 b6 23. Nc3 Bc6 24. g4 Qb7 25. Qb1 Qe7 26. Rd1 Bb7 27. Rd2 Ba6 28. Ne5 Qc7 29. Ne4 Bb7 30. Nf3 Qc6 31. Ng3 f6 32. Qg6+ Kf8 33. Nh5 Qd7 34. Nxf6 Qf7 35. Qxf7+ Kxf7 36. Nd7 a4 37. Nxb6 a3 38. Nxc8 Rxc8 39. O-O Be4 40. Ra1 Ra8 41. Ne1 Bf8 42. Bf3 Bxf3 43. gxf3 Ke8 44. Nd3 Nxd3 45. Rxd3 Bb4 46. Rb3 Ra4 47. Ra2 Kd7 48. Kf1 Kd6 49. Ke2 Kc6 50. Kd3 Kd6 1-0

[Event "45th FIDE Olympiad 2024"]
[Site "Budapest"]
[Date "2024.09.19"]
[Round "8.15"]
[White "Dominguez Perez, Leinier"]
[Black "Maurizzi, Marc`andria"]
[Result "1/2-1/2"]
[ECO "C24"]
[WhiteElo "2748"]
[BlackElo "2595"]
[Annotator "TA"]
[PlyCount "103"]
[EventDate "2024.09.05"]
[EventType "team-tourn"]
[EventCountry "HUN"]
[SourceTitle "playchess.com"]
[Source "ChessBase"]
[SourceQuality "1"]
[WhiteTeam "United States of America"]
[BlackTeam "France"]
[BlackTeamCountry "FRA"]
[TimeControl "40/5400+30:1800+30"]

{[%evp 26,103,24,24,32,18,16,15,10,12,12,0,0,0,0,0,0,0,63,58,45,3,20,6,20,15,8,13,15,6,7,9,11,11,8,6,7,4,7,7,8,0,4,0,0,0,0,0,4,0,8,8,22,0,0,0,23,12,92,35,36,28,23,25,30,18,22,16,18,29,29,21,44,8,8,8,8,0,0,0]} 1. e4 {[%emt 0:00:04]} e5 {[%emt 0:00:31]} 2. Nf3 {[%emt 0:00:07]} Nc6 {[%emt 0:01:22]} 3. Bc4 {[%emt 0:00:39]} Nf6 {[%emt 0:00:46]} 4. d3 {[%emt 0:00:07]} d5 {[%emt 0:00:35]} 5. exd5 {[%emt 0:00:25]} Nxd5 {[%emt 0:00:05]} 6. O-O {[%emt 0:02:38]} Be7 {[%emt 0:02:56]} 7. Re1 {[%emt 0:00:14]} f6 {[%emt 0:00:05] C24: Bishop's Opening: 2...Nf6.} 8. c3 {[%emt 0:00:06]} Bg4 {[%emt 0:02:08]} 9. h3 {[%emt 0:00:15]} Bh5 {[%emt 0:00:04]} 10. a4 {[%emt 0:00:11]} a6 $146 {[%emt 0:02:11]} ({Predecessor:} 10... O-O 11. a5 Rb8 12. Nbd2 Bf7 13. Nb3 Kh8 14. Bb5 a6 15. Ba4 Na7 16. d4 b5 17. axb6 Nxb6 {1-0 Kadric,D (2579)-Pfreundt,J (2455) Bundesliga 2324 2023 (2.1)}) 11. Nbd2 {[%emt 0:02:10]} O-O {[%emt 0:04:42]} 12. Ne4 {[%emt 0:02:57]} Bf7 {[%emt 0:00:16]} 13. b4 {[%emt 0:02:30]} Kh8 {[%emt 0:02:34]} 14. Bd2 {[%emt 0:01:06]} Qd7 {[%emt 0:02:22]} 15. a5 {[%emt 0:09:45]} Nd8 {[%emt 0:02:19]} 16. Qb3 {[%emt 0:28:15]} b5 {[%emt 0:07:36]} 17. axb6 {[%emt 0:00:08]} cxb6 {[%emt 0:00:04]} 18. Qa4 {[%emt 0:05:15]} (18. Rxa6 $2 Rxa6 19. Bxa6 Nxb4 $19) 18... Nc6 {[%emt 0:06:39]} ({Don't go for} 18... b5 $2 19. Bxb5 axb5 20. Qxa8 $18) 19. b5 {[%emt 0:00:05]} axb5 $1 {[%emt 0:00:43]} 20. Qxb5 {[%emt 0:00:07]} Rab8 {[%emt 0:05:45]} 21. Qa4 {[%emt 0:02:07]} Nc7 {[%emt 0:07:49]} (21... Be8 $11) 22. Bxf7 $14 {[%emt 0:00:48]} Rxf7 {[%emt 0:00:03]} 23. Rad1 {[%emt 0:13:42]} b5 {[%emt 0:01:23]} 24. Qc2 {[%emt 0:02:50]} b4 {[%emt 0:01:28]} 25. cxb4 {[%emt 0:01:43]} Bxb4 {[%emt 0:01:44]} 26. d4 {[%emt 0:02:00]} exd4 {[%emt 0:02:11]} 27. Bxb4 {[%emt 0:02:46]} Nxb4 {[%emt 0:00:04]} 28. Qc4 {[%emt 0:01:06]} Qd5 {[%emt 0:03:14]} (28... d3 {with more complications.} 29. Rb1 Nca6 30. Nc5 Nxc5 31. Qxc5 d2) 29. Rxd4 {[%emt 0:02:19]} Qxc4 {[%emt 0:00:05]} 30. Rxc4 {[%emt 0:00:06]} Nbd5 {[%emt 0:00:16]} 31. Rd1 {[%emt 0:02:02]} Re7 {[%emt 0:03:25]} 32. Nc5 {[%emt 0:02:16]} Rbe8 {[%emt 0:01:03]} 33. Nd3 {[%emt 0:02:12]} Re4 {[%emt 0:02:03]} 34. Rc5 {[%emt 0:01:32]} R4e7 {[%emt 0:01:38]} 35. Rb1 {[%emt 0:02:44]} Kg8 {[%emt 0:01:35]} 36. Nd4 {[%emt 0:01:07]} Rd7 {[%emt 0:05:35]} 37. Rb7 {[%emt 0:01:13]} Ree7 {[%emt 0:00:06]} 38. Nf5 {[%emt 0:03:57]} Rf7 {[%emt 0:00:33]} 39. Rb8+ {[%emt 0:03:16]} Rf8 {[%emt 0:00:03]} 40. Rb7 {[%emt 0:00:10]} Rff7 {[%emt 0:00:06]} 41. Kh2 {[%emt 0:08:23]} Ne7 {[%emt 0:16:14] [#]} (41... h6 $11 {keeps the balance.}) 42. Rcxc7 {[%emt 0:02:53]} ({Of course not} 42. Rbxc7 $6 Nxf5 43. Rxd7 Rxd7 $11) (42. Nxg7 $1 $16 {Black must now prevent Nh5.} Kxg7 43. Rcxc7 (43. Rbxc7 $2 {is the wrong capture.} Rxd3 44. Ra5 Nd5 $19) 43... Rxd3 44. Rxe7 Rxe7 45. Rxe7+ Kg6 46. Re4) 42... Rxc7 $14 {[%emt 0:00:33]} 43. Nh6+ {[%emt 0:00:06]} gxh6 {[%emt 0:00:04]} 44. Rxc7 {[%emt 0:00:04]} Ng6 {[%emt 0:00:36]} 45. Rc6 {[%emt 0:02:21]} Kg7 {[%emt 0:01:14]} 46. Nc5 {[%emt 0:02:05]} Re7 {[%emt 0:00:59]} 47. Ne6+ {[%emt 0:00:36]} Kf7 {[%emt 0:00:06]} 48. Nd4 {[%emt 0:00:06]} Rd7 {[%emt 0:01:11]} 49. Rc4 {[%emt 0:01:29]} Ne5 {[%emt 0:01:37]} 50. Ra4 {[%emt 0:00:07]} Nd3 {[%emt 0:00:40]} 51. f3 {[%emt 0:04:03]} Nb2 {[%emt 0:00:12]} 52. Rb4 {[%emt 0:00:05]} 1/2-1/2

[Event "45th FIDE Olympiad 2024"]
[Site "Budapest"]
[Date "2024.09.19"]
[Round "8.15"]
[White "Elizee, Kaieem"]
[Black "Nsubuga, Haruna"]
[Result "1-0"]
[WhiteElo "1701"]
[BlackElo "2243"]
[PlyCount "112"]
[EventDate "2024.09.05"]
[EventType "team-tourn"]
[EventCountry "HUN"]
[WhiteTeam "Saint Lucia"]
[BlackTeam "Uganda"]
[BlackTeamCountry "UGA"]
[TimeControl "40/5400+30:1800+30"]

1. d4 Nf6 2. c4 e6 3. Nf3 d5 4. g3 Nc6 5. Bg2 dxc4 6. O-O Rb8 7. a4 Be7 8. Nc3 a6 9. e4 O-O 10. e5 Nd5 11. Ne4 Re8 12. h4 f5 13. exf6 gxf6 14. Re1 Bf8 15. a5 b5 16. axb6 cxb6 17. Bd2 b5 18. Qc1 Ncb4 19. Bxb4 Nxb4 20. Qf4 f5 21. Qxb8 fxe4 22. Rxe4 Bd6 23. Rg4+ Kh8 24. Qa8 e5 25. Rg5 e4 26. Ne5 Bxe5 27. Rxe5 Rf8 28. Qxe4 Qf6 29. Re7 Bf5 30. Qe5 Nd3 31. Qxf6+ Rxf6 32. Bb7 Nxb2 33. Bxa6 c3 34. Bxb5 Rf8 35. Rc7 c2 36. d5 Rb8 37. d6 Kg8 38. d7 Rd8 39. Re1 Bxd7 40. Bxd7 Nd3 41. Be6+ Kf8 42. Rf1 c1=Q 43. Rcxc1 Nxc1 44. Rxc1 Ke7 45. Bh3 Kf6 46. Rc5 h6 47. Kg2 Rd6 48. Bg4 Rb6 49. Bf3 Rb4 50. Rc6+ Kg7 51. h5 Ra4 52. Re6 Ra5 53. g4 Ra4 54. Be4 Rb4 55. Bf5 Rb3 56. Rg6+ Kh7 1-0